fUSD/lending_fUSD_20250525
["ID","MTS","AMOUNT","RATE_DAILY","PERIOD"]
[362328783,1748197841278,-420.0,0.00019993,2]
[362328784,1748197841288,-420.0,0.00019993,2]
[362328785,1748197841297,-420.0,0.00019993,2]
[362328786,1748197841307,-420.0,0.00019993,2]
[362328787,1748197841316,-420.0,0.00019993,2]
[362328788,1748197841326,-420.0,0.00019993,2]
[362328789,1748197841335,-420.0,0.00019993,2]
[362328790,1748197841344,-420.0,0.00019993,2]
[362328791,1748197841354,-420.0,0.00019993,2]
[362328792,1748197841363,-420.0,0.00019993,2]
[362328793,1748197841372,-420.0,0.00019993,2]
[362328794,1748197841382,-248.21046137,0.00019993,2]
[362328795,1748197841391,-420.0,0.00019993,2]
[362328796,1748197841400,-420.0,0.00019994,2]
[362328797,1748197841410,-420.0,0.00019994,2]
[362328798,1748197841419,-420.0,0.00019994,2]
[362328799,1748197841430,-420.0,0.00019994,2]
[362328800,1748197841443,-420.0,0.00019994,2]
[362328801,1748197841452,-420.0,0.00019994,2]
[362328802,1748197841467,-420.0,0.00019994,2]
[362328803,1748197841477,-166.45013626,0.00019994,2]
[362328804,1748197841486,-420.0,0.00019994,2]
[362328805,1748197841495,-420.0,0.00019994,2]
[362328806,1748197841504,-420.0,0.00019994,2]
[362328807,1748197841515,-420.0,0.00019994,2]
[362328808,1748197841524,-529.20416906,0.00019994,2]
[362328809,1748197841533,-420.0,0.00019994,2]
[362328810,1748197841542,-420.0,0.00019994,2]
[362328811,1748197841554,-420.0,0.00019994,2]
[362328812,1748197841564,-420.0,0.00019994,2]
[362328813,1748197841573,-420.0,0.00019994,2]
[362328814,1748197841582,-420.0,0.00019994,2]
[362328815,1748197841592,-420.0,0.00019994,2]
[362328816,1748197841601,-420.0,0.00019994,2]
[362328817,1748197841610,-420.0,0.00019994,2]
[362328818,1748197841619,-420.0,0.00019994,2]
[362328819,1748197841629,-555.01240878,0.00019994,2]
[362328820,1748197841639,-420.0,0.00019994,2]
[362328821,1748197841647,-420.0,0.00019994,2]
[362328822,1748197841656,-431.28092279,0.00019994,2]
[362328823,1748197841666,-420.0,0.00019994,2]
[362328824,1748197841675,-420.0,0.00019994,2]
[362328825,1748197841684,-420.0,0.00019994,2]
[362328826,1748197841692,-420.0,0.00019994,2]
[362328827,1748197841701,-420.0,0.00019994,2]
[362328828,1748197841710,-335.687575,0.00019994,2]
[362328829,1748197841720,-420.0,0.00019994,2]
[362328830,1748197841729,-420.0,0.00019994,2]
[362328831,1748197841738,-420.0,0.00019994,2]
[362328832,1748197841747,-420.0,0.00019994,2]
[362328833,1748197841756,-420.0,0.00019994,2]
[362328834,1748197841767,-420.0,0.00019994,2]
[362328835,1748197841776,-420.0,0.00019994,2]
[362328836,1748197841785,-420.0,0.00019994,2]
[362328837,1748197841794,-420.0,0.00019994,2]
[362328838,1748197841803,-420.0,0.00019994,2]
[362328839,1748197841812,-541.21,0.00019994,2]
[362328840,1748197841821,-276.57664199,0.00019994,2]
[362328841,1748197841830,-420.0,0.00019994,2]
[362328842,1748197841839,-719.59,0.00019994,2]
[362328843,1748197841848,-420.0,0.00019994,2]
[362328844,1748197841857,-5297.8780219,0.00019995,2]
[362328845,1748197841866,-132447.9167023,0.00019995,2]
[362328846,1748197841875,-9094.7215579,0.00019995,2]
[362328847,1748197841885,-420.0,0.00019997,2]
[362328848,1748197841894,-420.0,0.00019997,2]
[362328849,1748197841903,-420.0,0.00019997,2]
[362328850,1748197841912,-420.0,0.00019997,2]
[362328851,1748197841921,-152.43,0.00019997,2]
[362328852,1748197841930,-420.0,0.00019997,2]
[362328853,1748197841940,-420.0,0.00019997,2]
[362328854,1748197841949,-420.0,0.00019997,2]
[362328855,1748197841958,-1391.58,0.00019997,2]
[362328856,1748197841967,-1391.58,0.00019997,2]
[362328857,1748197841977,-1391.58,0.00019997,2]
[362328858,1748197841986,-576.18,0.00019997,2]
[362328859,1748197841996,-576.18,0.00019997,2]
[362328860,1748197842005,-576.18,0.00019997,2]
[362328861,1748197842016,-347.328471,0.00019997,2]
[362328862,1748197842025,-155.261559,0.00019997,2]
[362328863,1748197842034,-214.88193218,0.00019997,2]
[362328864,1748197842045,-995.10269412,0.00019997,2]
[362328865,1748197842090,-917.66534124,0.00019997,2]
[362328866,1748197842101,-17268.95713665,0.00019997,2]
[362328867,1748197842112,-182425.55202733,0.00019997,2]
[362328868,1748197842136,-144435.98109986,0.00019997,2]
[362328877,1748197842674,-420.0,0.00019899,2]
[362328878,1748197842684,-30354.12935276,0.00019997,2]
[362328879,1748197842893,-12917.9828306,0.00019997,2]
[362328880,1748197842949,-332.2593692,0.00019997,2]
[362328881,1748197842971,-0.53065265,0.00019997,2]
[362328888,1748197845833,-420.0,0.00019898,2]
[362328889,1748197845842,-420.0,0.00019993,2]
[362328890,1748197845851,-420.0,0.00019996,2]
[362328891,1748197845860,-899.6077944,0.00019997,2]
[362328892,1748197845892,-2201.8702,0.00019997,2]
[362328935,1748198046974,5561.0,0.000175,5]
[362328936,1748198168117,345.215603,7.945e-05,2]
[362328937,1748198316711,-1167.73,0.00017074,2]
[362328938,1748198316737,-515.2907,0.00017802,2]
[362328941,1748198554734,171.82,0.00021945,30]
[362328942,1748198585294,250.0,0.00015,2]
[362328943,1748198586366,300.0,0.00017,2]
[362328944,1748198693728,154.74,0.00025007,120]
[362328948,1748199010495,1109.34,0.00016642,2]
[362328951,1748199032033,-546.9918,0.00018541,2]
[362328957,1748199037976,-395.3182,0.00018541,2]
[362328958,1748199037986,-587.58179999,0.00018588,2]
[362328959,1748199038000,-412.41820001,0.00018588,2]
[362328960,1748199038013,-300.0,0.00018599,2]
[362328961,1748199038023,-77.69379991,0.000186,2]
[362328962,1748199038136,-14991.71011413,0.000186,2]
[362328963,1748199038146,-500.0,0.00018605,2]
[362328964,1748199038155,-500.0,0.00018605,2]
[362328965,1748199038165,-330.80209134,0.00018605,2]
[362328966,1748199038176,-500.0,0.00018605,2]
[362328967,1748199038186,-333.73862132,0.00018605,2]
[362328968,1748199038198,-500.0,0.00018605,2]
[362328969,1748199038207,-500.0,0.00018605,2]
[362328970,1748199038217,-1200.0,0.00018605,2]
[362328971,1748199038228,-23900.0,0.00018606,2]
[362328972,1748199038237,-200.0,0.00018678,2]
[362328973,1748199038247,-1237.01,0.00018711,2]
[362328974,1748199038256,-200.0,0.00018714,2]
[362328975,1748199038265,-154.74,0.00018755,2]
[362328976,1748199038275,-500.0,0.00018773,2]
[362328977,1748199038284,-172.11512963,0.00018779,2]
[362328978,1748199038294,-126205.60041121,0.0001878,2]
[362328979,1748199040000,-922.17211204,0.0001878,2]
[362328980,1748199040056,-49920.60246295,0.0001878,2]
[362328981,1748199040066,-5000.0,0.00018816,2]
[362328982,1748199040076,-1594.94,0.00018861,2]
[362328983,1748199040085,-246.55046296,0.000189,2]
[362328984,1748199040096,-150.0,0.00018903,7]
[362328985,1748199040105,-1109.34,0.00018906,2]
[362328986,1748199040115,-165.04,0.00018921,2]
[362328987,1748199040126,-250.0,0.00018931,2]
[362328988,1748199040135,-158.79,0.00018977,2]
[362328989,1748199040145,-350.0,0.00019,2]
[362328990,1748199040154,-158.79,0.00019024,2]
[362328991,1748199040164,-246.55046276,0.00019038,2]
[362328992,1748199040173,-158.79,0.00019072,2]
[362328993,1748199040183,-168.88,0.00019145,2]
[362328994,1748199040193,-207.4,0.00019167,2]
[362328995,1748199040207,-246.55046276,0.00019176,2]
[362328996,1748199040216,-714.85798712,0.00019178,2]
[362328997,1748199040226,-714.85798712,0.00019178,2]
[362328998,1748199040236,-714.85798712,0.00019178,2]
[362328999,1748199040245,-714.85798712,0.00019178,2]
[362329000,1748199040255,-714.85798712,0.00019178,2]
[362329001,1748199040265,-714.85798712,0.00019178,2]
[362329002,1748199040274,-714.85798712,0.00019178,2]
[362329003,1748199040284,-714.85798712,0.00019178,2]
[362329004,1748199040293,-714.85798712,0.00019178,2]
[362329005,1748199040303,-714.85798712,0.00019178,2]
[362329006,1748199040312,-714.85798712,0.00019178,2]
[362329007,1748199040322,-714.85798712,0.00019178,2]
[362329008,1748199040331,-714.85798712,0.00019178,2]
[362329009,1748199040340,-714.85798712,0.00019178,2]
[362329010,1748199040349,-714.85798712,0.00019178,2]
[362329011,1748199040360,-714.85798712,0.00019178,2]
[362329012,1748199040370,-168.3888056,0.00019178,2]
[362329013,1748199040384,-4000.0,0.00019178,2]
[362329014,1748199040394,-1500.0,0.00019178,2]
[362329015,1748199040404,-246.55046276,0.00019314,2]
[362329016,1748199040413,-1000.0,0.00019321,2]
[362329017,1748199040423,-246.55046276,0.00019452,2]
[362329018,1748199040432,-613.07105197,0.00019584,2]
[362329019,1748199040442,-246.55046276,0.0001959,2]
[362329020,1748199040452,-671.205908,0.00019599,2]
[362329021,1748199040461,-165.56,0.00019605,2]
[362329022,1748199040470,-246.55046276,0.00019728,2]
[362329023,1748199040480,-1000.0,0.00019799,2]
[362329024,1748199040490,-176.53946705,0.000198,2]
[362329025,1748199040499,-246.55046276,0.00019866,2]
[362329026,1748199040509,-1500.0,0.00019868,2]
[362329027,1748199040518,-228.63842062,0.00019872,2]
[362329028,1748199040528,-150.0,0.00019876,2]
[362329029,1748199040537,-151.0,0.00019886,2]
[362329030,1748199040547,-156.0,0.00019886,2]
[362329031,1748199040556,-151.0,0.00019886,2]
[362329032,1748199040566,-668.65185757,0.00019886,2]
[362329033,1748199040575,-1909.89,0.00019887,2]
[362329034,1748199040585,-420.0,0.00019898,2]
[362329035,1748199040594,-420.0,0.00019898,2]
[362329036,1748199040604,-420.0,0.00019898,2]
[362329037,1748199040615,-442.53359431,0.00019898,2]
[362329038,1748199040629,-420.0,0.00019898,2]
[362329039,1748199040638,-420.0,0.00019898,2]
[362329040,1748199040647,-420.0,0.00019898,2]
[362329041,1748199040657,-420.0,0.00019898,2]
[362329042,1748199040666,-411.45891999,0.00019898,2]
[362329043,1748199040676,-370.19053315,0.00019898,2]
[362329044,1748199040685,-208.27692773,0.00019898,2]
[362329045,1748199040694,-420.0,0.00019898,2]
[362329046,1748199040703,-420.0,0.00019898,2]
[362329047,1748199040713,-273.93727611,0.00019898,2]
[362329048,1748199040723,-420.0,0.00019898,2]
[362329049,1748199040731,-420.0,0.00019898,2]
[362329050,1748199040741,-420.0,0.00019898,2]
[362329051,1748199040751,-2000.06107299,0.00019898,2]
[362329052,1748199040760,-2000.06107296,0.00019898,2]
[362329053,1748199040769,-2000.06107296,0.00019898,2]
[362329054,1748199040778,-2000.06107296,0.00019899,2]
[362329055,1748199040787,-2000.06107296,0.00019899,2]
[362329056,1748199040796,-420.0,0.00019899,2]
[362329057,1748199040806,-420.0,0.00019899,2]
[362329058,1748199040815,-420.0,0.00019899,2]
[362329059,1748199040824,-436.89352348,0.00019899,2]
[362329060,1748199040834,-542.26586513,0.00019899,2]
[362329061,1748199040843,-420.0,0.00019899,2]
[362329062,1748199040852,-420.0,0.00019899,2]
[362329063,1748199040862,-420.0,0.00019899,2]
[362329064,1748199040871,-420.0,0.00019899,2]
[362329065,1748199040881,-420.0,0.00019899,2]
[362329066,1748199040891,-470.79756366,0.00019899,2]
[362329067,1748199040900,-420.0,0.00019899,2]
[362329068,1748199040910,-420.0,0.00019899,2]
[362329069,1748199040919,-420.0,0.00019899,2]
[362329070,1748199040930,-420.0,0.00019899,2]
[362329071,1748199040939,-420.0,0.00019899,2]
[362329072,1748199040948,-420.0,0.00019899,2]
[362329073,1748199040957,-500.0,0.00019899,2]
[362329074,1748199040966,-420.0,0.00019899,2]
[362329075,1748199040977,-398.16574508,0.00019899,2]
[362329076,1748199040988,-420.0,0.00019899,2]
[362329077,1748199040999,-420.0,0.00019899,2]
[362329078,1748199041010,-480.59765028,0.00019899,2]
[362329079,1748199041020,-420.0,0.00019899,2]
[362329080,1748199041029,-426.85081385,0.00019899,2]
[362329081,1748199041038,-420.0,0.00019899,2]
[362329082,1748199041047,-420.0,0.00019899,2]
[362329083,1748199041056,-420.0,0.00019899,2]
[362329084,1748199041065,-420.0,0.00019899,2]
[362329085,1748199041074,-420.0,0.00019899,2]
[362329086,1748199041084,-420.0,0.00019899,2]
[362329087,1748199041093,-420.0,0.00019899,2]
[362329088,1748199041102,-420.0,0.00019899,2]
[362329089,1748199041111,-516.79819074,0.00019899,2]
[362329090,1748199041121,-420.0,0.00019899,2]
[362329091,1748199041132,-420.0,0.00019899,2]
[362329092,1748199041141,-155.4164058,0.00019899,2]
[362329093,1748199041151,-420.0,0.00019899,2]
[362329094,1748199041160,-420.0,0.00019899,2]
[362329095,1748199041169,-420.0,0.00019899,2]
[362329096,1748199041178,-420.0,0.00019899,2]
[362329097,1748199041187,-541.48478256,0.00019899,2]
[362329098,1748199041196,-420.0,0.00019899,2]
[362329099,1748199041205,-420.0,0.00019899,2]
[362329100,1748199041214,-420.0,0.00019899,2]
[362329101,1748199041223,-420.0,0.00019899,2]
[362329102,1748199041232,-420.0,0.00019899,2]
[362329103,1748199041241,-445.34054597,0.00019899,2]
[362329104,1748199041251,-420.0,0.00019899,2]
[362329105,1748199041260,-420.0,0.00019899,2]
[362329106,1748199041269,-420.0,0.00019899,2]
[362329107,1748199041279,-420.0,0.00019899,2]
[362329108,1748199041288,-420.0,0.00019899,2]
[362329109,1748199041297,-420.0,0.00019899,2]
[362329110,1748199041306,-420.0,0.00019899,2]
[362329111,1748199041315,-420.0,0.00019899,2]
[362329112,1748199041325,-420.0,0.00019899,2]
[362329113,1748199041334,-420.0,0.00019899,2]
[362329114,1748199041344,-426.51984163,0.00019899,2]
[362329115,1748199041353,-519.23656006,0.00019899,2]
[362329116,1748199041362,-420.0,0.00019899,2]
[362329117,1748199041371,-420.0,0.00019899,2]
[362329118,1748199041382,-420.0,0.00019899,2]
[362329119,1748199041391,-420.0,0.00019899,2]
[362329120,1748199041400,-445.14486074,0.00019899,2]
[362329121,1748199041410,-420.0,0.00019899,2]
[362329122,1748199041419,-410.0,0.00019899,2]
[362329123,1748199041429,-420.0,0.00019899,2]
[362329124,1748199041438,-522.75,0.00019899,2]
[362329125,1748199041447,-201.45013706,0.00019899,2]
[362329126,1748199041457,-2000.06107296,0.00019899,2]
[362329127,1748199041466,-2000.06107296,0.00019899,2]
[362329128,1748199041476,-639.94961396,0.00019899,2]
[362329129,1748199041486,-2000.06107296,0.000199,2]
[362329130,1748199041496,-2000.06107296,0.000199,2]
[362329131,1748199041505,-1153.892,0.000199,2]
[362329132,1748199041514,-178.158,0.000199,2]
[362329133,1748199041524,-180.62410854,0.000199,2]
[362329134,1748199041533,-639.94961396,0.000199,2]
[362329135,1748199041543,-201.45013705,0.000199,2]
[362329136,1748199041551,-2000.06107296,0.000199,2]
[362329137,1748199041560,-461.06149876,0.000199,2]
[362329138,1748199041570,-500.0,0.00019973,2]
[362329139,1748199041579,-500.0,0.00019973,2]
[362329140,1748199041588,-500.0,0.00019973,2]
[362329141,1748199041597,-501.58492468,0.00019973,2]
[362329142,1748199041606,-500.0,0.00019973,2]
[362329143,1748199041615,-470.0,0.0001998,2]
[362329144,1748199041626,-1909.89,0.00019987,2]
[362329145,1748199041635,-176.09029349,0.0001999,2]
[362329146,1748199041645,-270.81670701,0.0001999,2]
[362329147,1748199041654,-42640.3048466,0.0001999,2]
[362329148,1748199041663,-175.04078365,0.0001999,2]
[362329149,1748199041673,-420.0,0.00019994,2]
[362329150,1748199041682,-420.0,0.00019994,2]
[362329151,1748199041691,-420.0,0.00019994,2]
[362329152,1748199041700,-420.0,0.00019994,2]
[362329153,1748199041709,-420.0,0.00019994,2]
[362329154,1748199041718,-420.0,0.00019994,2]
[362329155,1748199041727,-420.0,0.00019994,2]
[362329156,1748199041736,-155.261559,0.00019994,2]
[362329157,1748199041746,-420.0,0.00019994,2]
[362329158,1748199041755,-420.0,0.00019994,2]
[362329159,1748199041764,-420.0,0.00019994,2]
[362329160,1748199041773,-420.0,0.00019994,2]
[362329161,1748199041782,-420.0,0.00019994,2]
[362329162,1748199041792,-173.664235,0.00019994,2]
[362329163,1748199041801,-420.0,0.00019994,2]
[362329164,1748199041811,-420.0,0.00019994,2]
[362329165,1748199041820,-344.4551916,0.00019994,2]
[362329166,1748199041829,-420.0,0.00019994,2]
[362329167,1748199041840,-420.0,0.00019994,2]
[362329168,1748199041850,-266.35019632,0.00019994,2]
[362329169,1748199041860,-420.0,0.00019994,2]
[362329170,1748199041870,-420.0,0.00019994,2]
[362329171,1748199041880,-420.0,0.00019994,2]
[362329172,1748199041889,-420.0,0.00019994,2]
[362329173,1748199041898,-420.0,0.00019994,2]
[362329174,1748199041908,-420.0,0.00019994,2]
[362329175,1748199041918,-420.0,0.00019994,2]
[362329176,1748199041932,-420.0,0.00019994,2]
[362329177,1748199041943,-420.0,0.00019994,2]
[362329178,1748199041954,-420.0,0.00019994,2]
[362329179,1748199041966,-420.0,0.00019994,2]
[362329180,1748199041979,-316.95209069,0.00019994,2]
[362329181,1748199041990,-465.86961466,0.00019994,2]
[362329182,1748199042003,-420.0,0.00019994,2]
[362329183,1748199042013,-523.72598001,0.00019994,2]
[362329184,1748199042025,-420.0,0.00019994,2]
[362329185,1748199042035,-420.0,0.00019994,2]
[362329186,1748199042045,-420.0,0.00019994,2]
[362329187,1748199042054,-420.0,0.00019994,2]
[362329188,1748199042066,-420.0,0.00019994,2]
[362329189,1748199042083,-177.10441233,0.00019994,2]
[362329190,1748199042094,-420.0,0.00019994,2]
[362329191,1748199042103,-420.0,0.00019994,2]
[362329192,1748199042113,-420.0,0.00019994,2]
[362329193,1748199042126,-420.0,0.00019994,2]
[362329194,1748199042137,-420.0,0.00019994,2]
[362329195,1748199042147,-420.0,0.00019994,2]
[362329196,1748199042156,-420.0,0.00019994,2]
[362329197,1748199042166,-420.0,0.00019994,2]
[362329198,1748199042175,-1900.8,0.00019994,2]
[362329199,1748199042184,-420.0,0.00019994,2]
[362329200,1748199042194,-420.0,0.00019994,2]
[362329201,1748199042204,-420.0,0.00019994,2]
[362329202,1748199042214,-420.0,0.00019994,2]
[362329203,1748199042225,-808.47,0.00019994,2]
[362329204,1748199042234,-420.0,0.00019994,2]
[362329205,1748199042243,-420.0,0.00019994,2]
[362329206,1748199042253,-420.0,0.00019994,2]
[362329207,1748199042264,-420.0,0.00019994,2]
[362329208,1748199042274,-420.0,0.00019994,2]
[362329209,1748199042286,-420.0,0.00019994,2]
[362329210,1748199042297,-420.0,0.00019994,2]
[362329211,1748199042308,-231.552315,0.00019994,2]
[362329212,1748199042320,-420.0,0.00019994,2]
[362329213,1748199042331,-420.0,0.00019994,2]
[362329214,1748199042340,-420.0,0.00019994,2]
[362329215,1748199042349,-420.0,0.00019994,2]
[362329216,1748199042358,-420.0,0.00019994,2]
[362329217,1748199042367,-420.0,0.00019994,2]
[362329218,1748199042378,-420.0,0.00019994,2]
[362329219,1748199042387,-420.0,0.00019994,2]
[362329220,1748199042397,-420.0,0.00019994,2]
[362329221,1748199042406,-420.0,0.00019994,2]
[362329222,1748199042415,-379.96419233,0.00019994,2]
[362329223,1748199042424,-420.0,0.00019994,2]
[362329224,1748199042434,-474.30671169,0.00019994,2]
[362329225,1748199042443,-420.0,0.00019994,2]
[362329226,1748199042452,-420.0,0.00019994,2]
[362329227,1748199042461,-420.0,0.00019994,2]
[362329228,1748199042470,-420.0,0.00019994,2]
[362329229,1748199042480,-420.0,0.00019994,2]
[362329230,1748199042489,-420.0,0.00019994,2]
[362329231,1748199042498,-372.37,0.00019994,2]
[362329232,1748199042507,-420.0,0.00019995,2]
[362329233,1748199042516,-420.0,0.00019995,2]
[362329234,1748199042525,-420.0,0.00019995,2]
[362329235,1748199042535,-420.0,0.00019995,2]
[362329236,1748199042544,-332.96837975,0.00019995,2]
[362329237,1748199042553,-420.0,0.00019995,2]
[362329238,1748199042563,-420.0,0.00019995,2]
[362329239,1748199042572,-420.0,0.00019995,2]
[362329240,1748199042581,-420.0,0.00019995,2]
[362329241,1748199042590,-420.0,0.00019995,2]
[362329242,1748199042599,-420.0,0.00019995,2]
[362329243,1748199042614,-420.0,0.00019995,2]
[362329244,1748199042624,-444.47431545,0.00019995,2]
[362329245,1748199042633,-420.0,0.00019995,2]
[362329246,1748199042643,-479.20198246,0.00019995,2]
[362329247,1748199042652,-420.0,0.00019995,2]
[362329248,1748199042661,-554.6795935,0.00019995,2]
[362329249,1748199042670,-464.73,0.00019995,2]
[362329250,1748199042679,-2984.73163,0.00019995,2]
[362329251,1748199042689,-28851.6240436,0.00019995,2]
[362329252,1748199042698,-420.0,0.00019995,2]
[362329253,1748199042707,-420.0,0.00019995,2]
[362329254,1748199042717,-2073.1975309,0.00019995,2]
[362329255,1748199042726,-276.57664199,0.00019995,2]
[362329256,1748199042736,-208.10077404,0.00019995,2]
[362329257,1748199042745,-420.0,0.00019995,2]
[362329258,1748199042755,-420.0,0.00019995,2]
[362329259,1748199042764,-1389.16,0.00019995,2]
[362329260,1748199042773,-420.0,0.00019995,2]
[362329261,1748199042782,-420.0,0.00019995,2]
[362329262,1748199042791,-420.0,0.00019995,2]
[362329263,1748199042801,-420.0,0.00019995,2]
[362329264,1748199042810,-420.0,0.00019995,2]
[362329265,1748199042821,-508.48792638,0.00019995,2]
[362329266,1748199042830,-420.0,0.00019995,2]
[362329267,1748199042840,-420.0,0.00019995,2]
[362329268,1748199042849,-389.42226546,0.00019995,2]
[362329269,1748199042859,-420.0,0.00019995,2]
[362329270,1748199042870,-420.0,0.00019995,2]
[362329271,1748199042881,-420.0,0.00019995,2]
[362329272,1748199042891,-491.53,0.00019995,2]
[362329273,1748199042901,-557.94279715,0.00019995,2]
[362329274,1748199042911,-420.0,0.00019995,2]
[362329275,1748199042920,-13681.8697953,0.00019995,2]
[362329276,1748199042933,-420.0,0.00019995,2]
[362329277,1748199042942,-420.0,0.00019995,2]
[362329278,1748199042952,-420.0,0.00019995,2]
[362329279,1748199042961,-420.0,0.00019995,2]
[362329280,1748199042973,-420.0,0.00019995,2]
[362329281,1748199042983,-420.0,0.00019995,2]
[362329282,1748199042993,-420.0,0.00019995,2]
[362329283,1748199043003,-420.0,0.00019995,2]
[362329284,1748199043014,-420.0,0.00019995,2]
[362329285,1748199043024,-420.0,0.00019995,2]
[362329286,1748199043035,-1087.76,0.00019995,2]
[362329287,1748199043045,-420.0,0.00019995,2]
[362329288,1748199043054,-420.0,0.00019995,2]
[362329289,1748199043064,-420.0,0.00019995,2]
[362329290,1748199043073,-420.0,0.00019995,2]
[362329291,1748199043083,-420.0,0.00019995,2]
[362329292,1748199043093,-420.0,0.00019995,2]
[362329293,1748199043104,-420.0,0.00019995,2]
[362329294,1748199043114,-420.0,0.00019995,2]
[362329295,1748199043123,-420.0,0.00019995,2]
[362329296,1748199043134,-420.0,0.00019995,2]
[362329297,1748199043144,-420.0,0.00019995,2]
[362329298,1748199043153,-555.01240878,0.00019995,2]
[362329299,1748199043163,-420.0,0.00019995,2]
[362329300,1748199043173,-420.0,0.00019995,2]
[362329302,1748199043182,-420.0,0.00019995,2]
[362329303,1748199043192,-431.28092279,0.00019995,2]
[362329305,1748199043202,-387.57,0.00019995,2]
[362329307,1748199043211,-420.0,0.00019995,2]
[362329309,1748199043220,-420.0,0.00019995,2]
[362329311,1748199043230,-420.0,0.00019995,2]
[362329313,1748199043239,-420.0,0.00019995,2]
[362329315,1748199043249,-768.69088632,0.00019995,2]
[362329317,1748199043258,-420.0,0.00019995,2]
[362329319,1748199043267,-420.0,0.00019995,2]
[362329321,1748199043280,-420.0,0.00019995,2]
[362329323,1748199043290,-420.0,0.00019995,2]
[362329325,1748199043299,-420.0,0.00019995,2]
[362329326,1748199043308,-420.0,0.00019995,2]
[362329328,1748199043317,-420.0,0.00019995,2]
[362329330,1748199043326,-420.0,0.00019995,2]
[362329332,1748199043336,-420.0,0.00019995,2]
[362329334,1748199043345,-2805.7264126,0.00019995,2]
[362329336,1748199043355,-420.0,0.00019995,2]
[362329338,1748199043364,-420.0,0.00019995,2]
[362329340,1748199043374,-420.0,0.00019995,2]
[362329342,1748199043384,-420.0,0.00019995,2]
[362329344,1748199043393,-420.0,0.00019995,2]
[362329346,1748199043402,-420.0,0.00019995,2]
[362329348,1748199043412,-264.24,0.00019995,2]
[362329350,1748199043421,-420.0,0.00019995,2]
[362329352,1748199043429,-420.0,0.00019996,2]
[362329354,1748199043439,-420.0,0.00019996,2]
[362329356,1748199043448,-420.0,0.00019996,2]
[362329358,1748199043457,-420.0,0.00019996,2]
[362329360,1748199043466,-420.0,0.00019996,2]
[362329362,1748199043475,-420.0,0.00019996,2]
[362329363,1748199043484,-420.0,0.00019996,2]
[362329365,1748199043494,-420.0,0.00019996,2]
[362329367,1748199043503,-420.0,0.00019996,2]
[362329369,1748199043513,-420.0,0.00019997,2]
[362329371,1748199043522,-258.95523862,0.00019997,2]
[362329390,1748199043701,-420.0,0.00019997,2]
[362329392,1748199043711,-420.0,0.00019997,2]
[362329394,1748199043721,-420.0,0.00019997,2]
[362329396,1748199043731,-420.0,0.00019997,2]
[362329398,1748199043741,-420.0,0.00019997,2]
[362329400,1748199043750,-324.80789805,0.00019997,2]
[362329402,1748199043759,-360.51961372,0.00019997,2]
[362329404,1748199043769,-420.0,0.00019997,2]
[362329406,1748199043778,-447.32236259,0.00019997,2]
[362329408,1748199043788,-420.0,0.00019997,2]
[362329409,1748199043799,-420.0,0.00019997,2]
[362329410,1748199043808,-420.0,0.00019997,2]
[362329411,1748199043818,-456.51109403,0.00019997,2]